[Event "Speed Chess Championship 2023"]
[Site "Chess.com"]
[Date "2023.09.19"]
[Round "3"]
[White "Nakamura, Hikaru"]
[Black "Vachier Lagrave, Maxime"]
[Result "1-0"]
[WhiteElo "3242"]
[BlackElo "3186"]
[ECO "A06"]
[EventDate "2023.??.??"]
[Annotator "rafael"]
[PlyCount "121"]
[Beauty "6323173329974"]
[EventType "team-tourn"]
[TimeControl "300+1"]

1.Nf3 d5 2.b3 Nf6 3.e3 g6 4.Bb2 Bg7 5.c4 O-O 6.d4 {Nakamura has many games in this position.} ( 6.cxd5 {is also possible but doesn't give anything special after} 6...Qxd5 7.Nc3 Qd8 ) 6...c6 ( 6...c5 {was played against Nakamura in a Titled Tuesday game this year.} 7.dxc5 Qa5+ 8.Nbd2 Bg4 9.cxd5 Nxd5 10.Bxg7 Kxg7 11.Bc4 Rd8 12.Qc2 $6 {[%c_effect c2;square;c2;type;Inaccuracy;persistent;true]} ( 12.O-O {is better.} ) 12...Bxf3 13.gxf3 Nc6 14.a3 Qxc5 {with a good position for Black in Nakamura-Timofeev, Titled Tuesday 2023.} ) 7.Bd3 Bg4 8.Nbd2 Nbd7 ( 8...c5 $5 {[%c_effect c5;square;c5;type;Interesting;persistent;true] is the move recommended by the computer.} ) 9.h3 Bxf3 10.Nxf3 e6 ( 10...Qa5+ {leads to a slightly better endgame for White due to the bishop pair:} 11.Qd2 Qxd2+ 12.Kxd2 Ne4+ 13.Kc2 {Nakamura-Rakhmanov, Titled Tuesday 2019.} ) 11.Qc2 Qe7 {A new move.} ( 11...Re8 12.O-O a6 13.Rfd1 {with a slight advantage for White: Nakamura-Dubov, Titled Tuesday 2022.} ) 12.O-O Rfc8 {A curious development for the f8-rook. It seems more natural to bring the other rook to c8 and this one to d8. Vachier Lagrave wants to play ...c5 quickly.} 13.Rac1 c5 14.cxd5 {Nakamura plays a little hastily and loses the advantage.} ( 14.Qb1 {is natural, removing the queen from the c-file and keeping a slight advantage.} ) 14...Nxd5 15.Ba3 $6 {[%c_effect a3;square;a3;type;Inaccuracy;persistent;true] This is a clear inaccuracy: Nakamura certainly missed Black's ingenious reply.} ( 15.Qb1 ) 15...Qd8 $1 {[%c_effect d8;square;d8;type;GreatFind;persistent;true] The queen is going to a5.} 16.dxc5 $2 {[%c_effect c5;square;c5;type;Mistake;persistent;true] A serious mistake. White's position becomes very dangerous.} ( 16.Qd2 {The game remains equal after} 16...cxd4 17.Nxd4 ) 16...Qa5 17.e4 $6 {[%c_effect e4;square;e4;type;Inaccuracy;persistent;true]} ( 17.Bb2 {is the lesser evil.} 17...Nb4 18.Bc3 $1 {[%c_effect c3;square;c3;type;GreatFind;persistent;true] The only move.} 18...Bxc3 19.Qxc3 Rxc5 20.Bc4 Nxa2 21.Qxa5 Rxa5 22.Ra1 b6 {with a clearly better endgame for Black.} ) 17...Nf4 ( 17...Qxa3 {is also good, but the move played in the game is even stronger.} 18.exd5 Rxc5 19.Qb1 exd5 {with a healthy pawn up.} ) 18.g3 Nxh3+ 19.Kg2 Nxf2 $1 {[%c_effect f2;square;f2;type;GreatFind;persistent;true]} 20.Qxf2 Qxa3 {Black is winning, but Nakamura creates an imaginative tactical trap.} 21.Rc4 $5 {[%c_effect c4;square;c4;type;Interesting;persistent;true]} 21...Rxc5 $2 {[%c_effect c5;square;c5;type;Mistake;persistent;true] Vachier-Lagrave falls for it. One needs to be always alert when facing Nakamura.} ( 21...Nxc5 {is winning.} ) 22.Nd4 $3 {[%c_effect d4;square;d4;type;Brilliant;persistent;true] A brilliant move, threatening to take on f7 and also to trap the queen with 23.Ra4.} 22...Rxc4 {Black has no time to defend the f7-pawn.} ( 22...Ne5 23.Ra4 {wins the queen.} ) 23.Qxf7+ Kh8 24.Nxe6 $1 {[%c_effect e6;square;e6;type;GreatFind;persistent;true]} 24...Rg8 25.Qxd7 $2 {[%c_effect d7;square;d7;type;Mistake;persistent;true] This lets Black off the hook.} ( 25.Bxc4 {is better, sustaining the pressure. The main idea can be seen in the following variation:} 25...Ne5 26.Qxb7 Nxc4 27.bxc4 Qxa2+ 28.Rf2 Qxc4 29.Nxg7 Rxg7 30.Rf8+ Rg8 31.Qb2+ $1 {[%c_effect b2;square;b2;type;GreatFind;persistent;true] Black is mated.} ) 25...Rc3 26.Ng5 ( 26.Nxg7 {leads to a chaotic position after} 26...Qxa2+ 27.Kh3 Qxb3 ) 26...Rf8 $2 {[%c_effect f8;square;f8;type;Mistake;persistent;true]} ( 26...h6 {is necessary.} 27.Nf7+ Kh7 28.e5 ( 28.Ng5+ Kh8 {with perpetual check.} ) 28...Rxd3 29.Qxd3 Qxa2+ 30.Rf2 Qa6 {with equality.} ) 27.Nf7+ Kg8 28.Qd5 $2 {[%c_effect d5;square;d5;type;Mistake;persistent;true]} ( 28.Qe6 $1 {[%c_effect e6;square;e6;type;GreatFind;persistent;true] is the right way. This avoids Black's defense in the game and is also useful against the advance of the h-pawn, since now g6 is hanging.} 28...h6 ( 28...h5 {loses to} 29.Ng5+ Kh8 30.Qxg6 ) 29.Ne5+ Kh7 30.Qxg6+ Kg8 ( 30...Kh8 31.Nf7+ Rxf7 32.Rxf7 {winning.} ) 31.Bc4+ Rxc4 32.Rxf8+ Qxf8 33.Nxc4 {with a winning endgame a pawn up.} ) 28...Qe7 {28...h6 and 28...h5 are also possible.} ( 28...h5 29.Ng5+ Kh8 30.Nf7+ {with a draw.} ) ( 28...h6 29.Ng5+ ( 29.Nxh6+ {is also a draw:} 29...Kh7 30.Rxf8 Qxf8 31.Nf7 Rxd3 32.Ng5+ Kh6 33.Nf7+ Kh7 ) 29...Kh8 30.Nf7+ Kh7 31.Ng5+ {with a draw. Taking the knight is bad:} 31...hxg5 $2 {[%c_effect g5;square;g5;type;Mistake;persistent;true]} 32.Rh1+ Bh6 33.Qd7+ Kg8 34.Rxh6 {and White wins.} ) 29.Bc4 Rxc4 $2 {[%c_effect c4;square;c4;type;Mistake;persistent;true]} ( 29...Bf6 $1 {[%c_effect f6;square;f6;type;GreatFind;persistent;true] is the best defense. Black prepares to take the f7-knight.} 30.e5 Rc2+ 31.Kh3 Qxf7 $1 {[%c_effect f7;square;f7;type;GreatFind;persistent;true]} 32.Qd3 Rxc4 33.Rxf6 Rc7 34.Rxf7 Rcxf7 {with a slight advantage for Black, although White should be able to make a draw.} ) 30.Nh6+ Kh8 31.Rxf8+ Qxf8 32.Nf7+ Kg8 33.Nd6+ Kh8 34.bxc4 {Queen and knight combine very well attacking the king. Furthermore, the passed e-pawn is very dangerous.} 34...b6 35.e5 $2 {[%c_effect e5;square;e5;type;Mistake;persistent;true] The wrong time to advance.} ( 35.Nf7+ $1 {[%c_effect f7;square;f7;type;GreatFind;persistent;true]} 35...Kg8 36.Ne5+ Kh8 37.Nd7 Qe8 38.e5 {with a clear advantage.} ) 35...h5 $1 {[%c_effect h5;square;h5;type;GreatFind;persistent;true]} 36.e6 Bf6 37.Ne4 Be7 {The bishop controls both the pawn and the knight.} 38.Qe5+ Kh7 39.Qc7 Kh6 $1 {[%c_effect h6;square;h6;type;GreatFind;persistent;true]} 40.Nc3 ( 40.Qxa7 Qf5 $1 {[%c_effect f5;square;f5;type;GreatFind;persistent;true] with a draw.} ) 40...Qf6 41.Nd5 Qb2+ 42.Kf3 Bc5 43.Qf4+ g5 44.Qf6+ Qxf6+ 45.Nxf6 Kg6 46.Nd5 {The game steers into a drawn knight against bishop endgame.} 46...Bd6 47.g4 h4 48.a4 Bc5 49.Kg2 Bd6 50.Kh3 Bc5 51.Nc3 {One last winning try.} 51...Kf6 {Black can also wait since White has no plan to improve the position.} ( 51...Be7 52.Ne4 Bb4 ) 52.Ne4+ Kxe6 53.Nxg5+ Ke5 54.Kxh4 Kd4 $4 {[%c_effect d4;square;d4;type;Blunder;persistent;true] A blunder that finally decides this dramatic game.} ( 54...Be7 55.Kh5 Kd4 56.Ne6+ Kxc4 57.g5 Bxg5 58.Kxg5 Kb4 59.Kf4 Kxa4 60.Ke4 {with a draw.} ) 55.Ne6+ Kxc4 56.Nxc5 bxc5 57.g5 {White's g-pawn is too fast.} 57...Kd5 58.Kh5 c4 59.g6 Ke6 60.Kh6 c3 61.g7 1-0

[Event "Speed Chess Championship 2023"]
[Site "Chess.com"]
[Date "2023.09.19"]
[Round "3"]
[White "Carlsen, Magnus"]
[Black "So, Wesley"]
[Result "1-0"]
[WhiteElo "3229"]
[BlackElo "3093"]
[ECO "C77"]
[EventDate "2023.??.??"]
[Annotator "rafael"]
[PlyCount "83"]
[Beauty "7559142440967"]
[EventType "team-tourn"]
[TimeControl "180+1"]

1.e4 e5 2.Nf3 Nc6 3.Bb5 a6 4.Ba4 Nf6 5.d3 Bc5 6.Bg5 h6 7.Bh4 d6 8.d4 {A move that Carlsen employed against Keymer in the recent World Cup in a game where he was in a must-win situation.} 8...exd4 9.Nxd4 Bd7 10.Bxc6 Bxc6 {A new move.} ( 10...bxc6 11.Nc3 O-O 12.Qd3 Bb4 13.Ne2 {with a complex middlegame in Carlsen-Keymer, Baku 2023.} ) 11.Nxc6 bxc6 12.Nd2 O-O 13.Qf3 Re8 {Black is not so worried with the capture on f6, since his activity compensates for the damaged pawn structure in the endgame.} 14.Bxf6 ( 14.O-O-O {is a possibility in order to keep queens on the board. Black must play} 14...Re6 $1 {[%c_effect e6;square;e6;type;GreatFind;persistent;true] protecting the knight. The position is equal.} ) 14...Qxf6 15.Qxf6 gxf6 16.O-O f5 $1 {[%c_effect f5;square;f5;type;GreatFind;persistent;true] Black takes advantage of this resource to improve the pawn structure. White should not capture the pawn, since} 17.Rfe1 ( 17.exf5 $6 {[%c_effect f5;square;f5;type;Inaccuracy;persistent;true]} 17...Re2 18.Rad1 Rb8 19.b3 Kg7 {gives Black an excellent position.} ) 17...Rab8 18.Rab1 {This ugly move is necessary in order to keep fighting for the win. Black has no problems after} ( 18.Nb3 fxe4 19.Nxc5 dxc5 20.b3 Rbd8 ) 18...fxe4 ( 18...Bd4 $1 {[%c_effect d4;square;d4;type;GreatFind;persistent;true] It's more accurate to delay the capture on e4.} 19.c3 Bf6 {Black has no problems.} ) 19.Nxe4 Bd4 20.b3 {The type of endgame that is Carlsen's bread and butter. But let's not forget that So also has excellent technique.} 20...Kg7 ( 20...Re6 {is possible. White has only a small plus after} 21.Ng3 Rf6 22.Re2 ) 21.Ng3 $1 {[%c_effect g3;square;g3;type;GreatFind;persistent;true]} 21...Kg6 22.Rxe8 Rxe8 23.Kf1 {White has a better pawn structure and a more comfortable position. It's not so easy to defend this in a blitz game against Carlsen. It's impressive how he knows which types of endgames are equal, but difficult to defend, and keeps pressing without rushing and playing the moves considered best by the computer even though he spends little time on them.} 23...a5 $6 {[%c_effect a5;square;a5;type;Inaccuracy;persistent;true]} ( 23...f5 $1 {[%c_effect f5;square;f5;type;GreatFind;persistent;true] is more precise:} 24.Re1 Rxe1+ 25.Kxe1 f4 26.Ne2 Be5 {with good defensive chances.} ) 24.Re1 $1 {[%c_effect e1;square;e1;type;GreatFind;persistent;true]} 24...Ra8 $6 {[%c_effect a8;square;a8;type;Inaccuracy;persistent;true]} ( 24...Rxe1+ 25.Kxe1 {The endgame is very difficult to defend. White's knight will give Black a hard time protecting all the pawn weaknesses.} ) ( 24...Re6 {is interesting, but White can keep provoking the rook exchange after} 25.Re4 $5 {[%c_effect e4;square;e4;type;Interesting;persistent;true]} ) 25.Re4 ( 25.Re7 $1 {[%c_effect e7;square;e7;type;GreatFind;persistent;true] is even better with a clear advantage.} ) 25...c5 26.Rg4+ Kf6 27.Ne2 Be5 28.Ra4 Ke6 ( 28...d5 {should be considered immediately.} ) 29.g3 ( 29.Nf4+ {is good for White, since the rook endgame after} 29...Bxf4 30.Rxf4 {is very unpleasant to defend, due to White's better pawn structure and more active rook.} ) 29...d5 30.Rh4 Bg7 31.Kg2 d4 $2 {[%c_effect d4;square;d4;type;Mistake;persistent;true] This move creates more weaknesses.} ( 31...c6 {is necessary, reinforcing the d5-pawn.} ) 32.Nf4+ $6 {[%c_effect f4;square;f4;type;Inaccuracy;persistent;true]} ( 32.Rh5 $1 {[%c_effect h5;square;h5;type;GreatFind;persistent;true] is more accurate:} 32...Kd6 33.Rf5 Rf8 34.Nf4 {with a winning advantage.} ) 32...Kd6 33.Rh5 a4 {Black gets a glimpse of hope, although the position remains difficult.} 34.Nd3 axb3 35.axb3 c4 $1 {[%c_effect c4;square;c4;type;GreatFind;persistent;true]} 36.bxc4 Ra2 37.Rd5+ Ke7 $6 {[%c_effect e7;square;e7;type;Inaccuracy;persistent;true] The last error.} ( 37...Ke6 $1 {[%c_effect e6;square;e6;type;GreatFind;persistent;true] is correct. Now the c2-pawn cannot be defended, and 38.Nb4 is not as strong. Black has some drawing chances, for instance:} 38.Nc5+ ( 38.Nb4 Ra4 $1 {[%c_effect a4;square;a4;type;GreatFind;persistent;true]} ) ( 38.Rc5 Kd6 $1 {[%c_effect d6;square;d6;type;GreatFind;persistent;true]} ) 38...Ke7 39.Rd7+ Ke8 40.Rxc7 Rxc2 ) 38.Nb4 Ra4 ( 38...Rb2 {is a better choice, but the rook endgame is winning for White after} 39.Nc6+ ( 39.Rb5 {is also possible.} ) 39...Ke6 40.Nxd4+ Bxd4 41.Rxd4 Rxc2 42.Rh4 f6 43.Rxh6 Rxc4 44.Rh8 ) 39.Nc6+ Kf6 ( 39...Kf8 40.Rd8# ) ( 39...Ke6 40.Nxd4+ ) 40.Rxd4 Ke6 41.Rf4 Ra2 42.Nd8+ {The knight is really a dangerous piece in a blitz game.} 1-0

[Event "Tata Steel Chess India Rapid & Blitz 2023"]
[Site "Chess.com"]
[Date "2023.09.01"]
[Round "5"]
[White "Savitha Shri, B."]
[Black "Divya, Deshmukh"]
[Result "0-1"]
[WhiteElo "2236"]
[BlackElo "2216"]
[ECO "B15"]
[EventDate "2023.??.??"]
[Annotator "rafael"]
[PlyCount "72"]
[Beauty "7904887310927"]
[EventType "blitz"]
[TimeControl "1500+10"]

1.e4 c6 2.d4 d5 3.Nc3 dxe4 4.Nxe4 {This was once the undisputed main line of the Caro-Kann Defense. Nowadays the advance variation (4.e5) is also very popular.} 4...Nf6 {The fashionable move, supplanting 4...Bf5 and 4...Nd7.} 5.Nxf6+ exf6 $1 {[%c_effect f6;square;f6;type;GreatFind;persistent;true] There was a time when capturing with the g-pawn was considered the best move, but today's computers have a clear preference for taking with the e-pawn. Despite having doubled pawns and granting White a dangerous pawn majority on the queenside, it seems that Black's free piece development is a good compensation.} 6.c3 Bd6 7.Bd3 O-O 8.Qc2 Re8+ 9.Ne2 {The critical position of this opening system.} 9...h5 $1 {[%c_effect h5;square;h5;type;GreatFind;persistent;true] A somewhat surprising move, as it seems dangerous to advance the pawn two squares when White can still castle on the queenside. But practice has shown that White's attack doesn't arrive so quickly.} 10.Be3 {White decides to go for queenside castling. There are over a thousand games in this position.} ( 10.O-O {This is another natural move. Now the h-pawn continues its journey and we can understand Black's idea.} 10...h4 $1 {[%c_effect h4;square;h4;type;GreatFind;persistent;true] Taking the g3-square from the knight.} 11.h3 Nd7 {There's a lot of theory here, but Black has good results.} ) 10...Nd7 11.O-O-O b5 $1 {[%c_effect b5;square;b5;type;GreatFind;persistent;true] Black advances on the queenside and prepares Nb6.} 12.d5 $1 {[%c_effect d5;square;d5;type;GreatFind;persistent;true] The critical test. A similar position was played in the recently finished Women's World Cup, but in the game Muzychuk-Salimova, white's knight was on f3. As the machine points out, this small difference is helpful for White.} 12...c5 $1 {[%c_effect c5;square;c5;type;GreatFind;persistent;true] A strong pawn sacrifice, well known by opening theory. We're following (among others) the famous game Duda-Carlsen, which ended a long undefeated streak by the world's number one.} 13.Bxb5 Rb8 14.Ba4 $2 {[%c_effect a4;square;a4;type;Mistake;persistent;true] This move immediately lands White in trouble.} ( 14.c4 {is necessary, as played in Duda-Carlsen, Norway Chess 2020.} ) 14...Re5 $1 {[%c_effect e5;square;e5;type;GreatFind;persistent;true] If you were wondering why the computer thinks this position is better for White with the knight on f3, this is one of the reasons: the e5-square cannot be used so easily. But with the knight on e2, Black has this move, with the plan of Nb6 followed by Bf5.} 15.Nf4 {A new move. White is already losing.} ( 15.Ng3 Nb6 16.Bf4 ( 16.Bc6 Nc4 $1 {[%c_effect c4;square;c4;type;GreatFind;persistent;true]} ) 16...Rxd5 17.Bxd6 Qxd6 {with a decisive advantage for Black in Eden-Alsina Leal, Paleochora 2021.} ) 15...Nb6 16.Bb5 {The bishop must cover the c4-square.} ( 16.Bc6 Nc4 {is very strong.} ) 16...c4 ( 16...a6 17.Be2 c4 {with the idea of playing Bf5, is also winning for Black. To be honest, it doesn't look so ugly at first sight, but I can't argue when the computer shows a four point advantage for Black.} ) 17.Bc6 Bf5 18.Qd2 Nc8 {A good move, paving the way for the queen. There are good alternatives as well.} ( 18...Qc8 {with the idea of ...Qa6.} ) ( 18...Na4 $1 {[%c_effect a4;square;a4;type;GreatFind;persistent;true] even this spectacular move is winning.} 19.Bxa4 Qa5 {The attack cannot be stopped, for instance:} 20.Bc2 Ba3 21.Bxf5 Rxb2 22.Qxb2 Qxc3+ 23.Bc2 Qxb2+ 24.Kd2 Bb4+ 25.Ke2 Qxc2+ ) 19.g4 {White desperately tries to distract Black from attacking the queenside.} 19...hxg4 20.a4 a6 {Taking the b5-square from the bishop and preparing ...Ba3. There are many winning moves.} ( 20...Qa5 ) ( 20...Ba3 21.Bb5 Qa5 $5 {[%c_effect a5;square;a5;type;Interesting;persistent;true] with the idea} 22.bxa3 Qxa4 $1 {[%c_effect a4;square;a4;type;GreatFind;persistent;true]} 23.Bxa4 Rb1# ) ( 20...Ne7 21.Bb5 Rxb5 $5 {[%c_effect b5;square;b5;type;Interesting;persistent;true]} 22.axb5 Qa5 23.Qe2 Qa1+ 24.Kd2 Qxb2+ 25.Ke1 Qxc3+ 26.Kf1 {The king has escaped to the kingside, although White's position is still losing.} ) 21.b4 {A dramatic way to avoid ...Ba3.} 21...cxb3 22.Kb2 Nb6 23.Bxb6 Qxb6 {Now Black is a pawn up, has the bishop pair, and continues the attack. The rest is easy.} 24.Nd3 Bxd3 25.Qxd3 Qxf2+ 26.Rd2 Qc5 27.Ra1 Re3 $1 {[%c_effect e3;square;e3;type;GreatFind;persistent;true]} 28.Qd4 Qxd4 29.cxd4 Bb4 $1 {[%c_effect b4;square;b4;type;GreatFind;persistent;true] Winning more material.} 30.Rad1 Bc3+ 31.Kb1 Bxd2 32.Rxd2 b2 33.Rxb2 Rxb2+ 34.Kxb2 Kf8 35.d6 Rd3 36.d5 Rh3 0-1